bitfinex/quotes_BTCUSD_20260215
["timestamp","ask_amount","ask_price","bid_price","bid_amount"]
[1771119374334,0.00012,69500.0,69481.0,0.002]
[1771119374335,0.07195859,69485.0,69481.0,0.002]
[1771119374540,0.43428467,69500.0,69480.0,5.578e-05]
[1771119374541,0.07195524,69488.0,69480.0,5.578e-05]
[1771119374741,0.00013057,69485.0,69480.0,5.578e-05]
[1771119374907,0.00013057,69485.0,69481.0,0.003]
[1771119375197,0.20823532,69492.0,69481.0,0.003]
[1771119375357,0.07194984,69493.0,69481.0,0.0034352]
[1771119375722,0.07195102,69492.0,69482.0,0.07196108]
[1771119375919,0.07195072,69492.0,69482.0,0.07196108]
[1771119376181,0.09224,69500.0,69482.0,0.02496691]
[1771119376182,0.07194692,69496.0,69482.0,0.02496691]
[1771119376343,0.00012,69500.0,69485.0,0.02496691]
[1771119376780,0.00012,69500.0,69484.0,0.02381573]
[1771119376979,0.00012,69500.0,69491.0,0.07195176]
[1771119377178,0.00012,69500.0,69488.0,0.02381573]
[1771119377179,0.00012,69500.0,69493.0,0.07194957]
[1771119377384,0.00112,69500.0,69488.0,0.10331389]
[1771119377588,0.01512,69500.0,69494.0,0.07194801]
[1771119377789,0.00012,69500.0,69494.0,0.07194801]
[1771119378062,0.02274056,69499.0,69491.0,0.07195085]
[1771119378373,0.02274056,69499.0,69487.0,0.0719559]
[1771119378558,0.02274056,69499.0,69486.0,0.07195676]
[1771119378782,0.0719525,69491.0,69482.0,0.0002]
[1771119378985,0.07195025,69493.0,69483.0,0.07195994]
[1771119379182,0.07195082,69492.0,69483.0,0.07195994]
[1771119379394,0.07531974,69495.0,69482.0,0.0002]
[1771119379840,0.07195674,69487.0,69486.0,0.003]
[1771119380041,0.07195709,69486.0,69482.0,0.0002]
[1771119380242,0.07195709,69486.0,69480.0,5.578e-05]
[1771119380533,0.07195601,69487.0,69480.0,5.578e-05]
[1771119380960,0.003,69487.0,69485.0,0.07195791]
[1771119381180,0.003,69487.0,69480.0,5.578e-05]
[1771119381824,0.003,69487.0,69481.0,0.07239672]
[1771119382016,0.02274056,69492.0,69482.0,0.07196108]
[1771119382221,0.02274056,69498.0,69482.0,0.07196108]
[1771119382503,0.004,69486.0,69483.0,0.07196004]
[1771119382736,0.07195117,69492.0,69483.0,0.07196004]
[1771119383054,0.12368649,69496.0,69483.0,0.07196004]
[1771119383254,4e-05,69484.0,69483.0,0.07196004]
[1771119383453,4e-05,69484.0,69483.0,4e-05]
[1771119383717,4e-05,69484.0,69483.0,0.00904]
[1771119383867,4e-05,69484.0,69483.0,0.07200004]
[1771119385112,4e-05,69484.0,69482.0,0.07196108]
[1771119385415,4e-05,69484.0,69483.0,0.07196004]
[1771119385774,0.00404,69484.0,69483.0,0.08496004]
[1771119385980,4e-05,69484.0,69483.0,0.07196004]
[1771119386179,4e-05,69490.0,69487.0,0.0719559]
[1771119386795,0.28777392,69500.0,69490.0,0.00016]
[1771119386995,0.1200224,69501.0,69490.0,0.00016]
[1771119386996,0.07531974,69501.0,69490.0,0.00016]
[1771119387220,0.07195215,69491.0,69488.0,4e-05]
[1771119387420,0.0004,69492.0,69488.0,4e-05]
[1771119387819,6.616e-05,69507.0,69489.0,0.02496691]
[1771119388026,0.07194746,69496.0,69492.0,4e-05]
[1771119388194,0.07194775,69495.0,69492.0,4e-05]
[1771119388389,0.07194412,69499.0,69492.0,4e-05]
[1771119388613,0.001,69501.0,69492.0,4e-05]
[1771119388812,0.28772583,69511.0,69492.0,4e-05]
[1771119389016,0.07531974,69505.0,69492.0,4e-05]
[1771119389303,0.02274056,69500.0,69493.0,0.07194899]
[1771119389534,0.02274056,69500.0,69494.0,0.07194865]
[1771119389741,0.09468089,69504.0,69494.0,0.07194865]
[1771119389936,0.07153061,69510.0,69500.0,0.00012]
[1771119390136,0.07153061,69510.0,69494.0,0.07194865]
[1771119390137,0.07194116,69502.0,69494.0,0.07194865]
[1771119390381,0.02274056,69507.0,69492.0,0.02685573]
[1771119390598,0.07531974,69508.0,69492.0,4e-05]
[1771119390776,0.00012,69510.0,69492.0,4e-05]
[1771119390777,0.0719472,69496.0,69492.0,4e-05]
[1771119390933,0.07194773,69495.0,69492.0,4e-05]
[1771119391310,0.07194773,69495.0,69490.0,0.00016]
[1771119391311,0.07194762,69495.0,69490.0,0.00012]
[1771119391494,0.07193867,69504.0,69495.0,0.07194685]
[1771119391628,0.07193968,69503.0,69495.0,0.07194685]
[1771119391827,0.007,69500.0,69495.0,0.07194685]
[1771119392061,0.07193968,69503.0,69495.0,0.07194685]
[1771119392658,0.28774255,69507.0,69494.0,0.07194841]
[1771119392862,0.28774255,69507.0,69493.0,0.07194945]
[1771119392863,0.07194137,69502.0,69493.0,0.07194945]
[1771119393083,0.007,69500.0,69495.0,0.003]
[1771119393284,0.07194137,69502.0,69494.0,0.07194853]
[1771119393606,0.07194137,69502.0,69495.0,0.003]
[1771119393778,0.009,69503.0,69495.0,0.003]
[1771119393982,0.03174056,69503.0,69495.0,0.003]
[1771119394187,0.07194658,69496.0,69495.0,0.003]
[1771119394372,0.07194556,69497.0,69495.0,0.003]
[1771119394774,0.11965881,69501.0,69490.0,0.00012]
[1771119394996,0.36308124,69505.0,69490.0,0.00012]
[1771119395224,0.07194543,69498.0,69495.0,0.006]
[1771119395423,0.07194543,69498.0,69490.0,0.10840986]
[1771119395652,0.00012,69500.0,69480.0,5.578e-05]
[1771119395780,0.27307099,69510.0,69500.0,0.00012]
[1771119395976,0.07194141,69501.0,69500.0,0.00012]
[1771119397241,0.07194136,69502.0,69500.0,0.00012]
[1771119397408,0.07194141,69501.0,69500.0,0.00012]
[1771119397869,0.02274056,69507.0,69500.0,0.00012]
[1771119397996,0.02274056,69507.0,69500.0,0.00312]
[1771119398202,4e-05,69498.0,69497.0,0.07194553]
[1771119398449,0.003,69501.0,69500.0,0.003]
[1771119398853,0.003,69501.0,69494.0,0.02381573]
[1771119398854,4e-05,69504.0,69498.0,0.07194414]
[1771119399056,4e-05,69504.0,69500.0,0.003]
[1771119399434,4e-05,69504.0,69497.0,0.07194478]
[1771119399630,4e-05,69504.0,69500.0,0.007]
[1771119399832,0.003,69501.0,69500.0,0.07894191]
[1771119400007,0.003,69501.0,69500.0,0.007]
[1771119400921,4e-05,69504.0,69498.0,0.07194381]
[1771119401129,0.00304,69504.0,69500.0,0.003]
[1771119401360,4e-05,69504.0,69499.0,0.07194323]
[1771119401791,4e-05,69504.0,69497.0,0.07194494]
[1771119402016,4e-05,69504.0,69495.0,0.02487009]
[1771119402194,4e-05,69504.0,69498.0,0.07194382]
[1771119402373,4e-05,69504.0,69501.0,0.07194069]
[1771119402577,0.00056,69510.0,69508.0,0.07193321]
[1771119402779,0.00056,69510.0,69506.0,0.0719352]
[1771119403435,0.00056,69510.0,69507.0,0.07193483]
[1771119403679,0.00069089,69510.0,69507.0,0.07193483]
[1771119404084,0.0719257,69518.0,69508.0,0.07193363]
[1771119404322,0.07192802,69514.0,69507.0,0.07193484]
[1771119404900,0.002,69510.0,69508.0,0.07193412]
[1771119405108,0.02436849,69519.0,69508.0,0.07193416]
[1771119405463,0.07193024,69512.0,69502.0,0.02273858]
[1771119405669,0.004,69514.0,69508.0,0.07193346]
[1771119405872,0.00012,69520.0,69513.0,0.07192899]
[1771119406077,0.00012,69520.0,69504.0,0.02273858]
[1771119406230,0.07192494,69517.0,69508.0,0.07193384]
[1771119406558,0.07192399,69518.0,69510.0,0.07193132]
[1771119406854,0.00012,69520.0,69502.0,0.00013089]
[1771119407087,0.00012,69520.0,69512.0,0.03633719]
[1771119407258,0.07892469,69519.0,69512.0,0.03633719]
[1771119407420,0.07892469,69519.0,69511.0,0.07193105]
[1771119407421,0.07192389,69518.0,69511.0,0.07193105]
[1771119407625,0.07192332,69519.0,69511.0,0.07193106]
[1771119407825,0.005,69518.0,69510.0,0.07405156]
[1771119408025,0.005,69518.0,69512.0,0.07192926]
[1771119408234,0.07192177,69520.0,69512.0,0.07192926]
[1771119408435,0.014,69518.0,69512.0,0.07192926]
[1771119408830,0.07192177,69520.0,69512.0,0.07192926]
[1771119408831,0.02436849,69522.0,69512.0,0.07192926]
[1771119409046,0.013,69518.0,69512.0,0.07192926]
[1771119409459,0.1568842,69524.0,69511.0,0.07192901]
[1771119409664,0.07192277,69520.0,69511.0,0.07192901]
[1771119409899,0.07192312,69519.0,69511.0,0.07192901]
[1771119410079,0.01,69518.0,69511.0,0.07192901]
[1771119410649,0.023,69518.0,69512.0,0.003]
[1771119410873,0.01,69518.0,69511.0,0.07192901]
[1771119411072,0.01,69518.0,69511.0,0.07592901]
[1771119411277,0.00012,69530.0,69522.0,0.07191918]
[1771119411480,0.13276964,69534.0,69522.0,0.07191918]
[1771119411797,0.07190798,69534.0,69525.0,0.07191654]
[1771119411941,0.07190798,69534.0,69522.0,0.10825481]
[1771119412144,0.07191016,69532.0,69523.0,0.07191762]
[1771119412843,0.07204102,69532.0,69523.0,0.07191762]
[1771119413146,4e-05,69524.0,69523.0,0.07167762]
[1771119413923,4e-05,69524.0,69523.0,0.07367762]
[1771119414053,4e-05,69524.0,69523.0,0.002]
[1771119414278,4e-05,69524.0,69520.0,0.03645719]
[1771119414476,4e-05,69524.0,69523.0,0.005]
[1771119414663,0.00104,69524.0,69523.0,0.005]
[1771119414869,4e-05,69524.0,69520.0,0.10837825]
[1771119415071,0.00204,69524.0,69523.0,0.006]
[1771119416282,4e-05,69530.0,69522.0,0.08893194]
[1771119416486,0.07190322,69538.0,69530.0,0.07191137]
[1771119416693,0.07190322,69538.0,69530.0,0.10824856]
[1771119416921,0.0004,69541.0,69529.0,0.07191225]
[1771119417124,0.07230054,69541.0,69530.0,0.02273858]
[1771119417441,0.0004,69541.0,69534.0,0.07190709]
[1771119417735,0.28755681,69552.0,69534.0,0.07190709]
[1771119417736,0.0718978,69544.0,69536.0,0.07190515]
[1771119417935,0.0718978,69544.0,69535.0,0.09464458]
[1771119417936,0.00013086,69544.0,69535.0,0.09464458]
[1771119418140,0.07202845,69544.0,69535.0,0.09464458]
[1771119418443,0.07202845,69544.0,69535.0,0.09464389]
[1771119418664,0.072028,69544.0,69535.0,0.02273858]
[1771119418955,0.07242803,69544.0,69535.0,0.09464458]
[1771119419571,0.003,69539.0,69535.0,0.09464458]
[1771119419748,0.07242803,69544.0,69535.0,0.09464458]
[1771119420151,0.08042803,69544.0,69535.0,0.09664458]
[1771119420398,0.08042803,69544.0,69537.0,0.07190416]
[1771119420399,0.00053086,69544.0,69537.0,0.07190416]
[1771119420623,0.07189903,69542.0,69533.0,0.0719078]
[1771119420790,0.00564,69539.0,69535.0,0.001]
[1771119420988,0.07190492,69537.0,69522.0,0.02273858]
[1771119421324,0.02436849,69539.0,69535.0,0.002]
[1771119421810,0.07190314,69538.0,69535.0,0.002]
[1771119422326,0.09627089,69539.0,69535.0,0.002]
[1771119422469,0.02436849,69537.0,69522.0,0.34428]
[1771119422673,0.07190682,69535.0,69526.0,0.07191452]
[1771119422892,0.07190682,69535.0,69522.0,0.34428]
[1771119422893,0.07191105,69531.0,69522.0,0.41619875]
[1771119423093,0.07191105,69531.0,69522.0,0.34428]
[1771119423294,0.07190843,69533.0,69523.0,0.07191772]
[1771119423496,0.08470751,69537.0,69535.0,0.006]
[1771119423676,0.07190732,69534.0,69526.0,0.07191484]
[1771119424101,0.003,69531.0,69526.0,0.07191484]
[1771119424325,0.07190732,69534.0,69526.0,0.07191484]
[1771119426370,0.07490732,69534.0,69526.0,0.08291484]
[1771119427313,0.0034,69534.0,69526.0,0.011]
[1771119427641,0.0034,69534.0,69529.0,0.07191172]
[1771119428244,0.0034,69534.0,69530.0,0.00012]
[1771119428381,4e-05,69532.0,69530.0,0.07199139]
[1771119429524,0.00044,69534.0,69530.0,0.07899139]
[1771119429714,0.00044,69534.0,69530.0,0.07199139]
[1771119430201,0.002,69532.0,69530.0,0.07899139]
[1771119430369,4e-05,69538.0,69535.0,0.07190623]
[1771119430921,4e-05,69538.0,69535.0,0.10824342]
[1771119431123,4e-05,69538.0,69535.0,0.07190623]
[1771119432358,0.00204,69538.0,69535.0,0.08090623]
[1771119432831,0.00204,69538.0,69536.0,0.07190494]
[1771119433001,4e-05,69542.0,69538.0,0.07190222]
[1771119433369,4e-05,69542.0,69539.0,0.07190189]
[1771119434683,0.14504331,69550.0,69540.0,0.00012]
[1771119434881,0.14509346,69550.0,69540.0,0.00012]
[1771119435275,0.07189458,69547.0,69540.0,0.00012]
[1771119435495,0.07189465,69548.0,69540.0,0.00012]
[1771119435496,5.015e-05,69550.0,69540.0,0.00012]
[1771119435898,0.07189746,69544.0,69540.0,0.00012]
[1771119436129,0.07189746,69544.0,69540.0,0.00212]
[1771119436421,0.15648773,69545.0,69536.0,4e-05]
[1771119436620,0.08459151,69545.0,69540.0,0.002]
[1771119436842,0.09641601,69544.0,69540.0,0.002]
[1771119437832,0.0004,69541.0,69536.0,4e-05]
[1771119438205,0.0004,69541.0,69540.0,0.009]
[1771119438386,0.0004,69541.0,69536.0,4e-05]
[1771119438588,0.07190168,69540.0,69536.0,4e-05]
[1771119439154,0.07190168,69540.0,69534.0,4e-05]
[1771119439394,0.07190168,69540.0,69536.0,0.01]
[1771119439518,0.07190168,69540.0,69534.0,4e-05]
[1771119439926,0.07490168,69540.0,69536.0,0.01]
[1771119440803,0.003,69540.0,69539.0,0.07190209]
[1771119441013,0.0004,69541.0,69539.0,0.07190209]
[1771119441363,0.003,69540.0,69539.0,0.07190209]
[1771119441565,0.0004,69541.0,69539.0,0.07190209]
[1771119441737,0.0004,69541.0,69538.0,0.07190273]
[1771119441929,0.004,69540.0,69539.0,0.012]
[1771119442132,0.07230067,69541.0,69534.0,0.07194655]
[1771119442379,0.0004,69541.0,69534.0,4e-05]
[1771119442580,0.004,69540.0,69539.0,0.012]
[1771119442780,0.0004,69541.0,69534.0,4e-05]
[1771119443083,0.07190394,69538.0,69532.0,4e-05]
[1771119443323,0.07194394,69538.0,69532.0,4e-05]
[1771119443518,0.07190448,69537.0,69532.0,4e-05]
[1771119444358,0.08972767,69537.0,69532.0,4e-05]
[1771119444559,0.0719083,69533.0,69530.0,0.00012]
[1771119444768,0.0719083,69533.0,69532.0,0.01]
[1771119444970,0.02451873,69536.0,69532.0,0.01]
[1771119445181,0.02451873,69536.0,69530.0,0.07203077]
[1771119445321,0.02451873,69536.0,69532.0,0.012]
[1771119445727,0.02451873,69536.0,69530.0,0.07203077]
[1771119445935,0.004,69533.0,69532.0,0.011]
[1771119446869,0.0004,69541.0,69534.0,0.28762907]
[1771119447030,0.0004,69541.0,69532.0,0.011]
[1771119447031,0.0004,69541.0,69537.0,0.07190416]
[1771119447274,0.00044,69544.0,69538.0,0.12049935]
[1771119447482,4e-05,69546.0,69545.0,0.07189589]
[1771119447692,0.00044,69548.0,69538.0,0.09395437]
[1771119447872,0.00044,69548.0,69543.0,0.07189708]
[1771119448642,0.005,69546.0,69545.0,0.013]
[1771119448871,0.00044,69548.0,69543.0,0.07189708]
[1771119449073,0.00021015,69550.0,69540.0,0.18893143]
[1771119449277,0.14514706,69558.0,69545.0,0.07189488]
[1771119449481,0.14514706,69558.0,69546.0,0.07193482]
[1771119450062,0.10765799,69559.0,69546.0,0.07193482]
[1771119450063,0.28753396,69557.0,69546.0,4e-05]
[1771119450248,0.004,69548.0,69546.0,4e-05]
[1771119450444,0.004,69548.0,69544.0,4e-05]
[1771119450869,0.07189205,69549.0,69544.0,4e-05]
[1771119451272,0.07189205,69549.0,69540.0,0.00012]
[1771119451443,0.07189205,69549.0,69546.0,0.003]
[1771119451876,0.07189205,69549.0,69540.0,0.00017015]
[1771119452081,0.07489205,69549.0,69544.0,0.005]
[1771119452432,0.16496084,69555.0,69544.0,0.005]
[1771119452595,0.16496084,69555.0,69545.0,0.07189589]
[1771119453492,0.09307526,69555.0,69544.0,0.005]
[1771119453698,0.09307526,69555.0,69542.0,0.07189843]
[1771119453917,0.004,69549.0,69546.0,0.011]
[1771119454339,0.07188906,69552.0,69543.0,0.07189727]
[1771119454541,0.07188906,69552.0,69544.0,0.08189689]
[1771119454739,0.07188906,69552.0,69544.0,0.07189689]
[1771119454938,0.07188473,69556.0,69546.0,0.07189483]
[1771119455140,0.004,69549.0,69546.0,0.08489483]
[1771119455308,0.0004,69549.0,69546.0,0.07189483]
[1771119455509,0.0004,69549.0,69547.0,0.07189362]
[1771119456020,0.0004,69549.0,69544.0,0.12049281]
[1771119456021,0.0004,69549.0,69544.0,0.07189625]
[1771119456410,0.0004,69556.0,69549.0,0.07189127]
[1771119456612,0.003,69552.0,69550.0,0.04859656]
[1771119456862,0.0004,69556.0,69550.0,0.09496758]
[1771119457236,0.0004,69556.0,69550.0,0.02307703]
[1771119457440,0.0004,69556.0,69550.0,0.09496773]
[1771119457644,0.0004,69556.0,69550.0,0.02307703]
[1771119457960,0.0034,69556.0,69550.0,0.02807703]
[1771119458110,0.0004,69556.0,69550.0,0.02307703]
[1771119458314,4e-05,69552.0,69550.0,0.02299703]
[1771119458663,0.07188352,69557.0,69550.0,0.03011703]
[1771119459472,0.07188264,69558.0,69550.0,0.10200769]
[1771119459773,0.07188264,69558.0,69550.0,0.09500769]
[1771119459933,0.003,69556.0,69552.0,0.07188765]
[1771119460130,0.41623844,69562.0,69553.0,0.07188762]
[1771119460531,0.003,69558.0,69553.0,0.12044418]
[1771119460770,4e-05,69562.0,69561.0,0.07187935]
[1771119460955,0.07188393,69557.0,69554.0,0.02275549]
[1771119461125,0.004,69556.0,69554.0,0.02275549]
[1771119461325,0.004,69556.0,69552.0,0.011]
[1771119461326,0.07188247,69558.0,69550.0,0.07200979]
[1771119461632,0.07188289,69558.0,69550.0,0.00012]
[1771119461845,4e-05,69562.0,69546.0,4e-05]
[1771119462062,0.07188749,69554.0,69546.0,4e-05]
[1771119462260,0.07188749,69554.0,69546.0,0.07193439]
[1771119462675,0.07188797,69553.0,69546.0,4e-05]
[1771119463301,0.07188797,69553.0,69546.0,0.00904]
[1771119463715,0.07188676,69554.0,69546.0,0.07193447]
[1771119463918,0.003,69553.0,69547.0,0.07189367]
[1771119464093,0.003,69553.0,69543.0,0.02234522]
[1771119464416,4e-05,69554.0,69545.0,0.28758084]
[1771119464579,0.003,69553.0,69550.0,0.07189062]
[1771119465185,0.003,69553.0,69546.0,0.009]
[1771119465583,0.003,69553.0,69546.0,0.0808948]
[1771119465784,0.07192757,69554.0,69546.0,0.0718948]
[1771119465985,0.07192757,69554.0,69543.0,0.02239537]
[1771119465986,0.29155433,69553.0,69543.0,0.03039537]
[1771119466185,0.07189234,69549.0,69543.0,0.00805015]
[1771119466385,0.07189234,69549.0,69543.0,5.015e-05]
[1771119466607,0.07189234,69549.0,69546.0,0.007]
[1771119466989,0.07189234,69549.0,69543.0,5.015e-05]
[1771119467189,0.07589234,69549.0,69543.0,0.00805015]
[1771119467416,0.07189234,69549.0,69543.0,5.015e-05]
[1771119467584,0.07189106,69550.0,69543.0,5.015e-05]
[1771119468622,0.07189128,69550.0,69543.0,5.015e-05]
[1771119468788,0.005,69549.0,69546.0,0.014]
[1771119468985,0.18007927,69549.0,69543.0,0.00025015]
[1771119469208,0.17507927,69549.0,69543.0,0.00025015]
[1771119469392,0.1031868,69549.0,69543.0,0.01225015]
[1771119469608,0.1031868,69549.0,69543.0,0.00025015]
[1771119470062,0.18007902,69549.0,69543.0,0.01425015]
[1771119470271,0.07189291,69548.0,69543.0,0.00025015]
[1771119470809,0.17907866,69549.0,69543.0,0.01325015]
[1771119471030,0.004,69549.0,69543.0,0.01325015]
[1771119471237,0.07589234,69549.0,69543.0,0.01325015]
[1771119471634,0.004,69549.0,69543.0,0.01325015]
[1771119471930,0.07189114,69550.0,69543.0,0.00025015]
[1771119472126,0.07189229,69549.0,69543.0,0.00025015]
[1771119472326,0.005,69548.0,69543.0,0.01525015]
[1771119472524,0.07189229,69549.0,69543.0,0.01525015]
[1771119472525,0.07189127,69550.0,69543.0,0.00025015]
[1771119472731,0.1031868,69553.0,69543.0,0.00025015]
[1771119472732,0.07189004,69551.0,69543.0,0.07214802]
[1771119472922,0.005,69549.0,69543.0,0.08814802]
[1771119473120,4e-05,69546.0,69543.0,0.07214802]
[1771119473369,4e-05,69546.0,69543.0,0.08814802]
[1771119473883,0.0004,69571.0,69560.0,0.025]
[1771119474081,0.0004,69571.0,69565.0,0.07187522]
[1771119474219,0.01263142,69577.0,69571.0,0.07186864]
[1771119474418,0.01263142,69577.0,69571.0,0.06304239]
[1771119474643,0.01263142,69577.0,69572.0,0.07186729]
[1771119475134,0.01306742,69577.0,69572.0,0.07186729]
[1771119475538,0.01306742,69577.0,69568.0,0.025]
[1771119475744,0.01306742,69577.0,69560.0,0.07199935]
[1771119475969,0.01306742,69577.0,69563.0,0.07187669]
[1771119476146,0.01306742,69577.0,69564.0,0.07187541]
[1771119476147,0.1031868,69576.0,69564.0,0.07187541]
[1771119476344,0.07186515,69575.0,69561.0,0.11293841]
[1771119476543,0.07186791,69574.0,69564.0,0.07187534]
[1771119476882,0.17505121,69576.0,69568.0,0.01]
[1771119476883,0.07186514,69575.0,69568.0,0.01]
[1771119477163,0.1031868,69576.0,69561.0,0.07187832]
[1771119477360,0.01306742,69577.0,69569.0,0.07187029]
[1771119477531,0.01306742,69577.0,69570.0,0.07186914]
[1771119477913,0.00052,69580.0,69561.0,0.10134333]
[1771119478118,0.00065075,69580.0,69576.0,0.07186352]
[1771119478316,0.004,69576.0,69575.0,0.025]
[1771119478871,0.00065075,69580.0,69575.0,0.025]
[1771119479017,0.00065075,69580.0,69573.0,0.07186679]
[1771119479218,0.00365075,69580.0,69573.0,0.07186679]
[1771119479469,0.00065075,69580.0,69573.0,0.07186679]
[1771119479669,0.00065075,69580.0,69574.0,0.07186565]
[1771119479850,0.003,69576.0,69575.0,0.07786489]
[1771119480052,0.00065075,69580.0,69576.0,0.0718631]
[1771119480304,0.00065075,69580.0,69576.0,0.04106006]
[1771119480436,0.00365075,69580.0,69576.0,0.11292368]
[1771119480783,0.00365075,69580.0,69577.0,0.0718628]
[1771119481021,0.00365075,69580.0,69579.0,0.07186076]
[1771119481297,0.0004,69583.0,69581.0,0.07185802]
[1771119481450,0.0004,69583.0,69582.0,0.07185766]
[1771119481651,0.0004,69583.0,69582.0,0.09685766]
[1771119482277,0.00049,69590.0,69576.0,0.10134333]
[1771119482477,0.00049,69590.0,69584.0,0.09685506]
[1771119483000,0.00049,69590.0,69576.0,0.10177933]
[1771119483001,1e-08,69591.0,69590.0,0.11290946]
[1771119483145,0.00012,69600.0,69593.0,0.0718463]
[1771119483361,0.00012,69600.0,69594.0,0.04106006]
[1771119483559,0.00012,69600.0,69599.0,0.11290017]
[1771119484317,0.1031868,69610.0,69595.0,0.10134333]
[1771119484318,0.07182969,69610.0,69595.0,0.10134333]
[1771119484473,0.01311061,69611.0,69599.0,0.11289946]
[1771119484474,0.0001379,69600.0,69599.0,0.11289946]
[1771119486196,0.0002651,69608.0,69603.0,0.0718354]
[1771119486413,0.00012,69630.0,69600.0,0.025]
[1771119486414,0.1033068,69620.0,69600.0,0.025]
[1771119486755,0.07182139,69618.0,69608.0,0.07183082]
[1771119487163,0.00012,69620.0,69606.0,0.04106006]
[1771119487292,0.00012,69620.0,69616.0,0.07182155]
[1771119487496,0.00012,69620.0,69618.0,0.0718205]
[1771119487883,0.00012,69620.0,69583.0,0.57485214]
[1771119488103,0.00012,69620.0,69615.0,0.0718235]
[1771119488253,4e-05,69610.0,69609.0,0.11264882]
[1771119489126,1e-08,69620.0,69618.0,0.025]
[1771119489262,1e-08,69620.0,69615.0,0.001]
[1771119489465,0.00400001,69620.0,69615.0,0.001]
[1771119489650,1e-08,69620.0,69619.0,0.07181947]
[1771119490070,0.70430789,69630.0,69620.0,0.025]
[1771119490071,0.00012,69630.0,69620.0,0.025]
[1771119490448,0.00012,69630.0,69617.0,0.10134333]
[1771119490449,0.00012,69630.0,69629.0,0.07180915]
[1771119490649,0.00012,69630.0,69617.0,0.10134333]
[1771119490650,0.00012,69630.0,69620.0,0.025]
[1771119490976,0.00012,69630.0,69629.0,0.07180915]
[1771119491176,0.0002651,69637.0,69635.0,0.11286211]
[1771119491376,0.34432,69646.0,69635.0,0.04106006]
[1771119491581,0.34445072,69646.0,69640.0,0.07179759]
[1771119491786,0.04167622,69645.0,69638.0,0.1128591]
[1771119492265,0.04167622,69645.0,69639.0,0.07179872]
[1771119492405,0.04167622,69645.0,69595.0,0.0003212]
[1771119492616,0.00013072,69646.0,69645.0,0.04106006]
[1771119492817,0.07188819,69654.0,69645.0,0.04106006]
[1771119492818,0.0001048,69654.0,69645.0,0.03967494]
[1771119493145,0.0001048,69654.0,69640.0,0.001]
[1771119493146,0.07178957,69648.0,69640.0,0.001]
[1771119493316,0.00138512,69649.0,69631.0,0.02430744]
[1771119493686,0.07179253,69646.0,69634.0,0.07180357]
[1771119493895,0.1726138,69648.0,69639.0,0.07179792]
[1771119494047,0.07179152,69647.0,69637.0,0.02430744]
[1771119494246,0.002,69645.0,69638.0,0.07179964]
[1771119494456,0.002,69645.0,69637.0,0.02430744]
[1771119494619,0.17261384,69648.0,69639.0,0.07179877]
[1771119494826,0.002,69646.0,69639.0,0.07179877]
[1771119495057,0.002,69646.0,69637.0,0.02430744]
[1771119495261,0.2871281,69656.0,69638.0,0.07179964]
[1771119495453,0.006,69645.0,69638.0,0.001]
[1771119495653,0.00054029,69654.0,69639.0,0.07179884]
[1771119495880,0.00054029,69654.0,69647.0,0.07178994]
[1771119496119,0.00054029,69654.0,69648.0,0.0403675]
[1771119496423,0.0717885,69650.0,69630.0,0.07180812]
[1771119496554,0.28767556,69654.0,69632.0,0.09901208]
[1771119496555,0.00054029,69654.0,69632.0,0.09901208]
[1771119496756,0.00054029,69654.0,69649.0,0.07178835]
[1771119496957,0.00054029,69654.0,69648.0,0.07178957]
[1771119497182,0.28707495,69669.0,69627.0,0.09204]
[1771119497183,0.1008241,69676.0,69642.0,0.02412154]
[1771119497425,0.07176951,69668.0,69659.0,0.02412154]
[1771119497578,0.07176951,69668.0,69659.0,0.02400154]
[1771119497785,0.1008241,69670.0,69660.0,0.07177627]
[1771119498035,0.00412722,69675.0,69666.0,0.07177035]
[1771119498193,0.41609209,69676.0,69665.0,0.07177186]
[1771119498392,0.34433059,69676.0,69666.0,0.07177071]
[1771119498738,0.34433059,69676.0,69665.0,0.07177164]
[1771119498946,0.009,69670.0,69665.0,0.07177164]
[1771119499235,0.009,69670.0,69665.0,0.03824389]
[1771119500060,0.07176295,69674.0,69665.0,0.11001563]
[1771119500263,0.00013059,69676.0,69665.0,0.03824389]
[1771119500420,0.07176916,69668.0,69659.0,0.03824389]
[1771119500619,0.07216916,69668.0,69659.0,0.03824389]
[1771119500854,0.07216916,69668.0,69659.0,0.11002196]
[1771119501160,0.0004,69668.0,69661.0,0.07177521]
[1771119501376,1e-08,69678.0,69644.0,3.013432]
[1771119501574,1e-08,69678.0,69665.0,0.28708742]
[1771119501743,1e-08,69678.0,69666.0,0.03824389]
[1771119501924,1e-08,69678.0,69671.0,0.07176581]
[1771119502138,1e-08,69678.0,69669.0,0.07176721]
[1771119502355,1e-08,69678.0,69670.0,0.0717667]
[1771119502556,1e-08,69678.0,69671.0,0.07176572]
[1771119503303,1e-08,69678.0,69648.0,0.28714179]
[1771119503304,4e-05,69672.0,69666.0,0.07177083]
[1771119503496,4e-05,69672.0,69666.0,0.07190142]
[1771119503716,4e-05,69672.0,69668.0,0.07176814]
[1771119503854,4e-05,69672.0,69669.0,0.02412154]
[1771119504465,0.00604,69672.0,69669.0,0.02412154]
[1771119504694,4e-05,69672.0,69669.0,0.02412154]
[1771119505236,0.00504,69672.0,69669.0,0.02412154]
[1771119506211,4e-05,69672.0,69669.0,0.02412154]
[1771119506599,0.00604,69672.0,69669.0,0.02412154]
[1771119506798,4e-05,69672.0,69669.0,0.02412154]
[1771119507180,0.0004,69672.0,69669.0,0.02412154]
[1771119507386,0.0004,69672.0,69666.0,0.00013059]
[1771119507387,0.1012241,69672.0,69666.0,0.00013059]
[1771119507824,0.18098985,69672.0,69666.0,0.00013059]
[1771119508024,0.1008241,69670.0,69666.0,0.00013059]
[1771119508229,4e-05,69676.0,69666.0,0.00013059]
[1771119508427,0.1008241,69674.0,69666.0,0.00013059]
[1771119508632,0.1008241,69673.0,69666.0,0.00013059]
[1771119509332,0.1008241,69673.0,69669.0,0.002]
[1771119509526,0.1008241,69673.0,69666.0,0.00013059]
[1771119510106,0.01175611,69673.0,69658.0,0.02412154]
[1771119510322,0.0717687,69669.0,69660.0,0.07189706]
[1771119510651,0.07176958,69668.0,69660.0,0.00012]
[1771119510855,0.43481887,69670.0,69656.0,4e-05]
[1771119511194,0.00012,69670.0,69656.0,4e-05]
[1771119511329,0.00012,69670.0,69665.0,0.07177126]
[1771119511529,0.00012,69670.0,69666.0,0.02412154]